fUSD/lending_fUSD_20260429
["ID","MTS","AMOUNT","RATE_DAILY","PERIOD"]
[421303935,1777399519889,-500.0,0.00042715,30]
[421303936,1777399519924,-500.0,0.00042715,30]
[421303937,1777399519960,-500.0,0.00042715,30]
[421303938,1777399520000,-500.0,0.00042715,30]
[421303939,1777399520037,-500.0,0.00042715,30]
[421303940,1777399520091,-500.0,0.00042715,30]
[421303941,1777399520136,-500.0,0.00042715,30]
[421303942,1777399520177,-500.0,0.00042715,30]
[421303943,1777399520217,-500.0,0.00042715,30]
[421303944,1777399520259,-1000000.0,0.00042715,30]
[421303945,1777399520300,-1000000.0,0.00042715,35]
[421303946,1777399520342,-1000000.0,0.00042715,40]
[421303947,1777399520383,-1000000.0,0.00042715,30]
[421303948,1777399520423,-1000000.0,0.00042715,30]
[421303949,1777399520464,-564034.0646673,0.00042715,30]
[421303950,1777399539285,-435965.9353327,0.00042715,30]
[421303951,1777399539317,-1000000.0,0.00042715,30]
[421303952,1777399539350,-1000000.0,0.00042715,30]
[421303953,1777399539385,-1000000.0,0.00042715,40]
[421303954,1777399539418,-1000000.0,0.00042715,40]
[421303955,1777399539451,-900245.0,0.00042715,35]
[421303956,1777399539481,-10032.54339382,0.00042715,120]
[421303957,1777399539513,-100000.0,0.00042715,30]
[421303958,1777399539556,-100000.0,0.00042715,30]
[421303959,1777399539593,-3924.3169357,0.00042715,120]
[421303960,1777399539625,-500.0,0.00042715,120]
[421303961,1777399539657,-500.0,0.00042715,120]
[421303962,1777399539689,-500.8,0.00042715,120]
[421303963,1777399539721,-1895.42697363,0.00042715,120]
[421303964,1777399539753,-100000.0,0.00042715,30]
[421303965,1777399539785,-500.0,0.00042715,120]
[421303966,1777399539817,-313.86745435,0.00042715,120]
[421303967,1777399539848,-572.06208814,0.00042715,120]
[421303968,1777399539880,-500.0,0.00042715,120]
[421303969,1777399539911,-100000.0,0.00042715,30]
[421303970,1777399539942,-1250.37,0.00042715,120]
[421303971,1777399539973,-1250.37,0.00042715,120]
[421303972,1777399540002,-1250.37,0.00042715,120]
[421303973,1777399540033,-1250.37,0.00042715,120]
[421303974,1777399540063,-1250.37,0.00042715,120]
[421303975,1777399540094,-1250.37,0.00042715,120]
[421303976,1777399540125,-1250.37,0.00042715,120]
[421303977,1777399540156,-1250.37,0.00042715,120]
[421303978,1777399540188,-1250.37,0.00042715,120]
[421303979,1777399540220,-1250.37,0.00042715,120]
[421303980,1777399540252,-1250.37,0.00042715,120]
[421303981,1777399540284,-1250.37,0.00042715,120]
[421303982,1777399540316,-1250.37,0.00042715,120]
[421303983,1777399540348,-1250.37,0.00042715,120]
[421303984,1777399540380,-1250.37,0.00042715,120]
[421303985,1777399540415,-1250.37,0.00042715,120]
[421303986,1777399540448,-1250.37,0.00042715,120]
[421303987,1777399540481,-1250.37,0.00042715,120]
[421303988,1777399540514,-1250.37,0.00042715,120]
[421303989,1777399540547,-1250.37,0.00042715,120]
[421303990,1777399540579,-1250.37,0.00042715,120]
[421303991,1777399540611,-1250.37,0.00042715,120]
[421303992,1777399540643,-1250.37,0.00042715,120]
[421303993,1777399540677,-1250.48999901,0.00042715,120]
[421303994,1777399540710,-1561.0,0.00042715,120]
[421303995,1777399540744,-1561.0,0.00042715,120]
[421303996,1777399540778,-1561.0,0.00042715,120]
[421303997,1777399540810,-1561.0,0.00042715,120]
[421303998,1777399540843,-1561.0,0.00042715,120]
[421303999,1777399540877,-1561.0,0.00042715,120]
[421304000,1777399540909,-887.1,0.00042715,120]
[421304001,1777399540941,-500.0,0.00042715,120]
[421304002,1777399540974,-500.4,0.00042715,120]
[421304003,1777399541007,-42276.85732879,0.00042715,30]
[421304004,1777399541039,-57041.85892899,0.00042715,30]
[421304005,1777399541071,-500.0,0.00042715,120]
[421304006,1777399541105,-500.0,0.00042715,120]
[421304007,1777399541137,-500.0,0.00042715,120]
[421304008,1777399541169,-500.0,0.00042715,120]
[421304009,1777399541201,-500.0,0.00042715,120]
[421304010,1777399541234,-500.0,0.00042715,120]
[421304011,1777399541267,-600.0,0.00042715,120]
[421304012,1777399541298,-7006.43855698,0.00042715,120]
[421304013,1777399541328,-2500.0,0.00042715,120]
[421304014,1777399541360,-2500.0,0.00042715,120]
[421304015,1777399541391,-2500.0,0.00042715,120]
[421304016,1777399541422,-575086.0,0.00042715,60]
[421304017,1777399541454,-3020.01012619,0.00042715,30]
[421304018,1777399541486,-1000.0,0.00042715,30]
[421304019,1777399541518,-2100.0,0.00042715,120]
[421304020,1777399541551,-601.2404,0.00042715,120]
[421304021,1777399541583,-198.1483265,0.00042715,120]
[421304022,1777399541614,-638.61,0.00042715,120]
[421304023,1777399541645,-300.0,0.00042715,120]
[421304024,1777399541678,-500.0,0.00042715,120]
[421304025,1777399541709,-500.0,0.00042715,120]
[421304026,1777399541741,-432.95,0.00042715,120]
[421304027,1777399541772,-500.0,0.00042715,120]
[421304028,1777399541804,-500.0,0.00042715,120]
[421304029,1777399541835,-229.86,0.00042715,120]
[421304030,1777399541866,-500.0,0.00042715,120]
[421304031,1777399541896,-500.0,0.00042715,120]
[421304032,1777399541927,-432.07,0.00042715,120]
[421304033,1777399541957,-500.0,0.00042715,120]
[421304034,1777399541987,-404.5138532,0.00042715,120]
[421304035,1777399542018,-426.99929565,0.00042715,120]
[421304036,1777399542048,-500.0,0.00042715,120]
[421304037,1777399542079,-500.0,0.00042715,120]
[421304038,1777399542108,-402.68,0.00042715,120]
[421304039,1777399542138,-436.08672398,0.00042715,120]
[421304040,1777399542168,-500.0,0.00042715,120]
[421304041,1777399542200,-446.6,0.00042715,120]
[421304042,1777399542230,-9038.0,0.00042715,120]
[421304043,1777399542260,-4877.95040101,0.00042715,31]
[421304044,1777399542290,-500.0,0.00042715,120]
[421304045,1777399542321,-362.2,0.00042715,120]
[421304046,1777399542352,-501.5,0.00042715,120]
[421304047,1777399542383,-500.0,0.00042715,120]
[421304048,1777399542414,-500.0,0.00042715,120]
[421304049,1777399542445,-336.01007762,0.00042715,120]
[421304050,1777399542693,-500.0,0.00042715,120]
[421304051,1777399542725,-500.0,0.00042715,120]
[421304052,1777399542756,-500.0,0.00042715,120]
[421304053,1777399542787,-500.0,0.00042715,120]
[421304054,1777399542817,-510.93,0.00042715,120]
[421304055,1777399542848,-393.28,0.00042715,120]
[421304056,1777399542879,-531.28528365,0.00042715,120]
[421304057,1777399542909,-500.0,0.00042715,120]
[421304058,1777399542940,-516.77,0.00042715,120]
[421304059,1777399542972,-500.0,0.00042715,120]
[421304060,1777399543002,-500.0,0.00042715,120]
[421304061,1777399543031,-500.0,0.00042715,120]
[421304062,1777399543060,-270.14,0.00042715,120]
[421304063,1777399543090,-260.645335,0.00042715,120]
[421304064,1777399543122,-500.0,0.00042715,120]
[421304065,1777399543156,-500.0,0.00042715,120]
[421304066,1777399543190,-500.0,0.00042715,120]
[421304067,1777399543222,-500.0,0.00042715,120]
[421304068,1777399543255,-500.0,0.00042715,120]
[421304069,1777399543288,-500.0,0.00042715,120]
[421304070,1777399543324,-365.56769024,0.00042715,120]
[421304071,1777399543356,-500.0,0.00042715,120]
[421304072,1777399543388,-535.06,0.00042715,120]
[421304073,1777399543419,-500.0,0.00042715,120]
[421304074,1777399543449,-500.0,0.00042715,120]
[421304075,1777399543480,-500.0,0.00042715,120]
[421304076,1777399543510,-515.52,0.00042715,120]
[421304077,1777399543541,-500.0,0.00042715,120]
[421304078,1777399543573,-500.0,0.00042715,120]
[421304079,1777399543606,-500.0,0.00042715,120]
[421304080,1777399543636,-566.35,0.00042715,120]
[421304081,1777399543666,-609.98,0.00042715,120]
[421304082,1777399543696,-500.0,0.00042715,120]
[421304083,1777399543726,-500.0,0.00042715,120]
[421304084,1777399543757,-552.12,0.00042715,120]
[421304085,1777399543787,-416.55689139,0.00042715,120]
[421304086,1777399543817,-1181.54,0.00042715,120]
[421304087,1777399543847,-1181.54,0.00042715,120]
[421304088,1777399543876,-1181.54,0.00042715,120]
[421304089,1777399543906,-1181.54,0.00042715,120]
[421304090,1777399543936,-1181.54,0.00042715,120]
[421304091,1777399543964,-1181.54,0.00042715,120]
[421304092,1777399543994,-1181.54,0.00042715,120]
[421304093,1777399544025,-1181.54,0.00042715,120]
[421304094,1777399544055,-1181.54,0.00042715,120]
[421304095,1777399544085,-1181.54,0.00042715,120]
[421304096,1777399544115,-1181.54,0.00042715,120]
[421304097,1777399544145,-1181.54,0.00042715,120]
[421304098,1777399544175,-1181.54,0.00042715,120]
[421304099,1777399544205,-1181.54,0.00042715,120]
[421304100,1777399544239,-1181.54,0.00042715,120]
[421304101,1777399544268,-500.0,0.00042715,120]
[421304102,1777399544298,-1181.54,0.00042715,120]
[421304103,1777399544327,-162.18,0.00042715,120]
[421304104,1777399544357,-1181.54,0.00042715,120]
[421304105,1777399544387,-1181.54,0.00042715,120]
[421304106,1777399544418,-1181.54,0.00042715,120]
[421304107,1777399544448,-1181.54,0.00042715,120]
[421304108,1777399544478,-1181.54,0.00042715,120]
[421304109,1777399544508,-1181.54,0.00042715,120]
[421304110,1777399544539,-500.0,0.00042715,120]
[421304111,1777399544570,-1181.54,0.00042715,120]
[421304112,1777399544600,-500.0,0.00042715,120]
[421304113,1777399544630,-1181.72,0.00042715,120]
[421304114,1777399544660,-644.18,0.00042715,120]
[421304115,1777399544692,-500.0,0.00042715,120]
[421304116,1777399544724,-520.0,0.00042715,120]
[421304117,1777399544757,-500.0,0.00042715,120]
[421304118,1777399544788,-471.17,0.00042715,120]
[421304119,1777399544819,-500.0,0.00042715,120]
[421304120,1777399544850,-500.0,0.00042715,120]
[421304121,1777399544880,-500.0,0.00042715,120]
[421304122,1777399544910,-500.0,0.00042715,120]
[421304123,1777399544940,-500.0,0.00042715,120]
[421304124,1777399544970,-500.0,0.00042715,120]
[421304125,1777399544999,-500.0,0.00042715,120]
[421304126,1777399545029,-500.0,0.00042715,120]
[421304127,1777399545060,-500.0,0.00042715,120]
[421304128,1777399545090,-500.0,0.00042715,120]
[421304129,1777399545119,-500.0,0.00042715,120]
[421304130,1777399545150,-611.23,0.00042715,120]
[421304131,1777399545180,-500.0,0.00042715,120]
[421304132,1777399545210,-500.0,0.00042715,120]
[421304133,1777399545240,-500.0,0.00042715,120]
[421304134,1777399545270,-500.0,0.00042715,120]
[421304135,1777399545300,-611.89,0.00042715,120]
[421304136,1777399545331,-500.0,0.00042715,120]
[421304137,1777399545362,-537.28,0.00042715,120]
[421304138,1777399545393,-500.0,0.00042715,120]
[421304139,1777399545425,-623.82895511,0.00042715,120]
[421304140,1777399545456,-500.0,0.00042715,120]
[421304141,1777399545488,-352.43,0.00042715,120]
[421304142,1777399545519,-614.52,0.00042715,120]
[421304143,1777399545550,-500.0,0.00042715,120]
[421304144,1777399545581,-500.0,0.00042715,120]
[421304145,1777399545612,-338.86,0.00042715,120]
[421304146,1777399545645,-509.07132525,0.00042715,120]
[421304147,1777399545676,-500.0,0.00042715,120]
[421304148,1777399545708,-500.0,0.00042715,120]
[421304149,1777399545739,-500.0,0.00042715,120]
[421304150,1777399545770,-202.53258548,0.00042715,120]
[421304151,1777399545802,-500.0,0.00042715,120]
[421304152,1777399545834,-176.65,0.00042715,120]
[421304153,1777399545865,-338.2050939,0.00042715,120]
[421304154,1777399545896,-500.0,0.00042715,120]
[421304155,1777399546104,-500.0,0.00042715,120]
[421304156,1777399546136,-500.0,0.00042715,120]
[421304157,1777399546168,-500.0,0.00042715,120]
[421304158,1777399546201,-500.0,0.00042715,120]
[421304159,1777399546232,-500.0,0.00042715,120]
[421304160,1777399546263,-299.88,0.00042715,120]
[421304161,1777399546295,-507.55,0.00042715,120]
[421304162,1777399546325,-500.0,0.00042715,120]
[421304163,1777399546355,-500.0,0.00042715,120]
[421304164,1777399546384,-500.0,0.00042715,120]
[421304165,1777399546416,-500.0,0.00042715,120]
[421304166,1777399546449,-418.29,0.00042715,120]
[421304167,1777399546480,-500.0,0.00042715,120]
[421304168,1777399546511,-544.44,0.00042715,120]
[421304169,1777399546541,-500.0,0.00042715,120]
[421304170,1777399546572,-500.0,0.00042715,120]
[421304171,1777399546604,-405.72,0.00042715,120]
[421304172,1777399546635,-500.0,0.00042715,120]
[421304173,1777399546667,-500.0,0.00042715,120]
[421304174,1777399546698,-500.0,0.00042715,120]
[421304175,1777399546728,-500.0,0.00042715,120]
[421304176,1777399546759,-500.0,0.00042715,120]
[421304177,1777399546790,-189.16,0.00042715,120]
[421304178,1777399546822,-500.0,0.00042715,120]
[421304179,1777399546853,-500.0,0.00042715,120]
[421304180,1777399546883,-402.43000001,0.00042715,120]
[421304181,1777399546913,-468.71790815,0.00042715,120]
[421304182,1777399546944,-500.0,0.00042715,120]
[421304183,1777399546975,-500.0,0.00042715,120]
[421304184,1777399547005,-620.66,0.00042715,120]
[421304185,1777399547035,-632.24768631,0.00042715,120]
[421304186,1777399547064,-500.0,0.00042715,120]
[421304187,1777399547095,-500.0,0.00042715,120]
[421304188,1777399547125,-500.0,0.00042715,120]
[421304189,1777399547156,-500.0,0.00042715,120]
[421304190,1777399547187,-500.0,0.00042715,120]
[421304191,1777399547218,-500.0,0.00042715,120]
[421304192,1777399547249,-215.6542083,0.00042715,120]
[421304193,1777399547279,-500.0,0.00042715,120]
[421304194,1777399547310,-500.0,0.00042715,120]
[421304195,1777399547340,-500.0,0.00042715,120]
[421304196,1777399547371,-561.39,0.00042715,120]
[421304197,1777399547400,-555.92084568,0.00042715,120]
[421304198,1777399547432,-500.0,0.00042715,120]
[421304199,1777399547462,-500.0,0.00042715,120]
[421304200,1777399547493,-500.0,0.00042715,120]
[421304201,1777399547524,-500.0,0.00042715,120]
[421304202,1777399547556,-500.0,0.00042715,120]
[421304203,1777399547587,-642.12,0.00042715,120]
[421304204,1777399547618,-546.69928655,0.00042715,120]
[421304205,1777399547648,-500.0,0.00042715,120]
[421304206,1777399547680,-500.0,0.00042715,120]
[421304207,1777399547711,-290.24915928,0.00042715,120]
[421304208,1777399547742,-500.0,0.00042715,120]
[421304209,1777399547772,-500.0,0.00042715,120]
[421304210,1777399547803,-500.0,0.00042715,120]
[421304211,1777399547834,-500.0,0.00042715,120]
[421304212,1777399547866,-500.0,0.00042715,120]
[421304213,1777399547898,-500.0,0.00042715,120]
[421304214,1777399547930,-177.5,0.00042715,120]
[421304215,1777399547962,-500.0,0.00042715,120]
[421304216,1777399547994,-500.0,0.00042715,120]
[421304217,1777399548025,-500.0,0.00042715,120]
[421304218,1777399548057,-533.65794287,0.00042715,120]
[421304219,1777399548089,-500.0,0.00042715,120]
[421304220,1777399548121,-500.0,0.00042715,120]
[421304221,1777399548152,-500.0,0.00042715,120]
[421304222,1777399548186,-384.08,0.00042715,120]
[421304223,1777399548218,-500.0,0.00042715,120]
[421304224,1777399548251,-610.56012387,0.00042715,120]
[421304225,1777399548284,-500.0,0.00042715,120]
[421304226,1777399548318,-500.0,0.00042715,120]
[421304227,1777399548354,-500.0,0.00042715,120]
[421304228,1777399548387,-500.0,0.00042715,120]
[421304229,1777399548422,-500.0,0.00042715,120]
[421304230,1777399548455,-500.0,0.00042715,120]
[421304231,1777399548488,-374.56579204,0.00042715,120]
[421304232,1777399548523,-500.0,0.00042715,120]
[421304233,1777399548560,-500.0,0.00042715,120]
[421304234,1777399548593,-500.0,0.00042715,120]
[421304235,1777399548625,-500.0,0.00042715,120]
[421304236,1777399548657,-500.0,0.00042715,120]
[421304237,1777399548690,-564.22937852,0.00042715,120]
[421304238,1777399548722,-500.0,0.00042715,120]
[421304239,1777399548754,-555.27,0.00042715,120]
[421304240,1777399548787,-500.0,0.00042715,120]
[421304241,1777399548820,-500.0,0.00042715,120]
[421304242,1777399548853,-500.0,0.00042715,120]
[421304243,1777399548884,-500.0,0.00042715,120]
[421304244,1777399548916,-500.0,0.00042715,120]
[421304245,1777399548947,-446.92,0.00042715,120]
[421304246,1777399548977,-500.0,0.00042715,120]
[421304247,1777399549007,-500.0,0.00042715,120]
[421304248,1777399549037,-154.24,0.00042715,120]
[421304249,1777399549067,-150.73483061,0.00042715,120]
[421304250,1777399549096,-500.0,0.00042715,120]
[421304251,1777399549126,-571.05860243,0.00042715,120]
[421304252,1777399549156,-500.0,0.00042715,120]
[421304253,1777399549186,-586.39,0.00042715,120]
[421304254,1777399549216,-500.0,0.00042715,120]
[421304255,1777399549246,-535.21,0.00042715,120]
[421304256,1777399549275,-500.0,0.00042715,120]
[421304257,1777399549305,-500.0,0.00042715,120]
[421304258,1777399549335,-500.0,0.00042715,120]
[421304259,1777399549527,-500.0,0.00042715,120]
[421304260,1777399549564,-500.0,0.00042715,120]
[421304261,1777399549596,-500.0,0.00042715,120]
[421304262,1777399549627,-500.0,0.00042715,120]
[421304263,1777399549658,-555.46626555,0.00042715,120]
[421304264,1777399549688,-500.0,0.00042715,120]
[421304265,1777399549719,-500.0,0.00042715,120]
[421304266,1777399549751,-500.0,0.00042715,120]
[421304267,1777399549782,-261.64,0.00042715,120]
[421304268,1777399549812,-500.0,0.00042715,120]
[421304269,1777399549842,-500.0,0.00042715,120]
[421304270,1777399549872,-500.0,0.00042715,120]
[421304271,1777399549904,-500.0,0.00042715,120]
[421304272,1777399549934,-500.0,0.00042715,120]
[421304273,1777399549964,-588.25512574,0.00042715,120]
[421304274,1777399549994,-500.0,0.00042715,120]
[421304275,1777399550024,-500.0,0.00042715,120]
[421304276,1777399550054,-545.81263677,0.00042715,120]
[421304277,1777399550084,-500.0,0.00042715,120]
[421304278,1777399550113,-500.0,0.00042715,120]
[421304279,1777399550143,-540.91412975,0.00042715,120]
[421304280,1777399550173,-500.0,0.00042715,120]
[421304281,1777399550204,-642.86479868,0.00042715,120]
[421304282,1777399550236,-500.0,0.00042715,120]
[421304283,1777399550266,-500.0,0.00042715,120]
[421304284,1777399550298,-500.0,0.00042715,120]
[421304285,1777399550329,-500.0,0.00042715,120]
[421304286,1777399550361,-500.0,0.00042715,120]
[421304287,1777399550394,-500.0,0.00042715,120]
[421304288,1777399550425,-500.0,0.00042715,120]
[421304289,1777399550456,-500.0,0.00042715,120]
[421304290,1777399550490,-500.0,0.00042715,120]
[421304291,1777399550522,-500.0,0.00042715,120]
[421304292,1777399550556,-500.0,0.00042715,120]
[421304293,1777399550587,-545.86,0.00042715,120]
[421304294,1777399550619,-500.0,0.00042715,120]
[421304295,1777399550652,-500.0,0.00042715,120]
[421304296,1777399550684,-560.14,0.00042715,120]
[421304297,1777399550716,-500.0,0.00042715,120]
[421304298,1777399550749,-621.73,0.00042715,120]
[421304299,1777399550782,-500.0,0.00042715,120]
[421304300,1777399550813,-500.0,0.00042715,120]
[421304301,1777399550844,-500.0,0.00042715,120]
[421304302,1777399550875,-500.0,0.00042715,120]
[421304303,1777399550906,-515.5346888,0.00042715,120]
[421304304,1777399550937,-500.0,0.00042715,120]
[421304305,1777399550968,-500.0,0.00042715,120]
[421304306,1777399550999,-574.56,0.00042715,120]
[421304307,1777399551030,-500.0,0.00042715,120]
[421304308,1777399551060,-500.0,0.00042715,120]
[421304309,1777399551090,-500.0,0.00042715,120]
[421304310,1777399551125,-500.0,0.00042715,120]
[421304311,1777399551156,-500.0,0.00042715,120]
[421304312,1777399551188,-317.85,0.00042715,120]
[421304313,1777399551219,-518.45734847,0.00042715,120]
[421304314,1777399551250,-525.0940795,0.00042715,120]
[421304315,1777399551281,-500.0,0.00042715,120]
[421304316,1777399551313,-527.23,0.00042715,120]
[421304317,1777399551344,-541.390127,0.00042715,120]
[421304318,1777399551375,-514.48442811,0.00042715,120]
[421304319,1777399551406,-500.0,0.00042715,120]
[421304320,1777399551438,-500.0,0.00042715,120]
[421304321,1777399551470,-578.8292768,0.00042715,120]
[421304322,1777399551502,-500.0,0.00042715,120]
[421304323,1777399551535,-500.0,0.00042715,120]
[421304324,1777399551568,-500.0,0.00042715,120]
[421304325,1777399551601,-500.0,0.00042715,120]
[421304326,1777399551634,-550.12733489,0.00042715,120]
[421304327,1777399551666,-523.74538242,0.00042715,120]
[421304328,1777399551698,-500.0,0.00042715,120]
[421304329,1777399551732,-500.0,0.00042715,120]
[421304330,1777399551765,-344.77273472,0.00042715,120]
[421304331,1777399551798,-500.0,0.00042715,120]
[421304332,1777399551830,-637.58215096,0.00042715,120]
[421304333,1777399551863,-500.0,0.00042715,120]
[421304334,1777399551894,-558.03910532,0.00042715,120]
[421304335,1777399551926,-500.0,0.00042715,120]
[421304336,1777399551959,-500.0,0.00042715,120]
[421304337,1777399551990,-571.63147627,0.00042715,120]
[421304338,1777399552021,-500.0,0.00042715,60]
[421304339,1777399552054,-508.49982569,0.00042715,60]
[421304340,1777399552087,-500.0,0.00042715,120]
[421304341,1777399552119,-549.02,0.00042715,120]
[421304342,1777399552151,-535.20703099,0.00042715,120]
[421304343,1777399552184,-500.0,0.00042715,120]
[421304344,1777399552217,-500.0,0.00042715,120]
[421304345,1777399552250,-500.0,0.00042715,120]
[421304346,1777399552284,-500.0,0.00042715,120]
[421304347,1777399552317,-500.0,0.00042715,120]
[421304348,1777399552350,-500.0,0.00042715,120]
[421304349,1777399552383,-500.0,0.00042715,120]
[421304350,1777399552414,-500.0,0.00042715,120]
[421304351,1777399552447,-500.0,0.00042715,120]
[421304352,1777399552479,-500.0,0.00042715,120]
[421304353,1777399552512,-227.04,0.00042715,120]
[421304354,1777399552546,-500.0,0.00042715,120]
[421304355,1777399552579,-195.50065447,0.00042715,120]
[421304356,1777399552611,-576.31846011,0.00042715,120]
[421304357,1777399552643,-592.07457381,0.00042715,120]
[421304358,1777399552675,-180.67766325,0.00042715,120]
[421304359,1777399552707,-500.0,0.00042715,120]
[421304360,1777399552738,-500.0,0.00042715,120]
[421304361,1777399552771,-477.04221303,0.00042715,120]
[421304362,1777399552804,-545.32520948,0.00042715,120]
[421304363,1777399552837,-500.0,0.00042715,120]
[421304364,1777399553041,-325.06889799,0.00042715,120]
[421304365,1777399553075,-500.0,0.00042715,120]
[421304366,1777399553108,-500.0,0.00042715,120]
[421304367,1777399553140,-500.0,0.00042715,120]
[421304368,1777399553172,-500.0,0.00042715,120]
[421304369,1777399553204,-500.0,0.00042715,120]
[421304370,1777399553235,-162.26,0.00042715,120]
[421304371,1777399553267,-546.63098841,0.00042715,120]
[421304372,1777399553298,-500.0,0.00042715,120]
[421304373,1777399553330,-500.0,0.00042715,120]
[421304374,1777399553361,-500.0,0.00042715,120]
[421304375,1777399553392,-500.0,0.00042715,120]
[421304376,1777399553424,-500.0,0.00042715,120]
[421304377,1777399553455,-500.0,0.00042715,120]
[421304378,1777399553488,-500.0,0.00042715,120]
[421304379,1777399553519,-500.0,0.00042715,120]
[421304380,1777399553552,-500.0,0.00042715,120]
[421304381,1777399553584,-500.0,0.00042715,120]
[421304382,1777399553616,-500.0,0.00042715,120]
[421304383,1777399553649,-500.0,0.00042715,120]
[421304384,1777399553681,-500.0,0.00042715,120]
[421304385,1777399553713,-376.65688203,0.00042715,120]
[421304386,1777399553745,-159.97,0.00042715,120]
[421304387,1777399553777,-500.0,0.00042715,120]
[421304388,1777399553809,-500.0,0.00042715,120]
[421304389,1777399553840,-500.0,0.00042715,120]
[421304390,1777399553871,-509.07368873,0.00042715,120]
[421304391,1777399553902,-649.24198196,0.00042715,120]
[421304392,1777399553933,-585.64166436,0.00042715,120]
[421304393,1777399553965,-409.37037024,0.00042715,120]
[421304394,1777399553996,-509.7380847,0.00042715,120]
[421304395,1777399554027,-500.0,0.00042715,120]
[421304396,1777399554058,-559.29,0.00042715,120]
[421304397,1777399554089,-500.0,0.00042715,120]
[421304398,1777399554121,-327.58,0.00042715,120]
[421304399,1777399554153,-500.0,0.00042715,120]
[421304400,1777399554184,-500.0,0.00042715,120]
[421304401,1777399554217,-500.0,0.00042715,120]
[421304402,1777399554248,-500.0,0.00042715,120]
[421304403,1777399554280,-500.0,0.00042715,120]
[421304404,1777399554311,-214.14,0.00042715,120]
[421304405,1777399554343,-243.64857684,0.00042715,120]
[421304406,1777399554375,-500.0,0.00042715,120]
[421304407,1777399554406,-153.18,0.00042715,120]
[421304408,1777399554437,-500.0,0.00042715,120]
[421304409,1777399554469,-500.0,0.00042715,120]
[421304410,1777399554501,-500.0,0.00042715,120]
[421304411,1777399554534,-500.0,0.00042715,120]
[421304412,1777399554566,-382.44243295,0.00042715,120]
[421304413,1777399554598,-500.0,0.00042715,120]
[421304414,1777399554629,-641.52162146,0.00042715,120]
[421304415,1777399554660,-1042.08,0.00042715,120]
[421304416,1777399554691,-1042.08,0.00042715,120]
[421304417,1777399554722,-1042.08,0.00042715,120]
[421304418,1777399554753,-1042.08,0.00042715,120]
[421304419,1777399554784,-1042.08,0.00042715,120]
[421304420,1777399554815,-1042.08,0.00042715,120]
[421304421,1777399554846,-1042.08,0.00042715,120]
[421304422,1777399554877,-1042.08,0.00042715,120]
[421304423,1777399554907,-1042.08,0.00042715,120]
[421304424,1777399554939,-1042.08,0.00042715,120]
[421304425,1777399554969,-1042.08,0.00042715,120]
[421304426,1777399555000,-1042.08,0.00042715,120]
[421304427,1777399555031,-1042.08,0.00042715,120]
[421304428,1777399555062,-1042.08,0.00042715,120]
[421304429,1777399555093,-1042.08,0.00042715,120]
[421304430,1777399555123,-1042.08,0.00042715,120]
[421304431,1777399555153,-1042.08,0.00042715,120]
[421304432,1777399555183,-1042.08,0.00042715,120]
[421304433,1777399555215,-1042.08,0.00042715,120]
[421304434,1777399555247,-1042.08,0.00042715,120]